Workbook

Sheet Dashboard
M3: 2021
M4: DICIEMBRE
A5: Acumulado a: | B5: =M4 -> DICIEMBRE | E5: Datos acumulados | G5: Cuota Negocio / Total ASEMPLEO | J5: =empresa_ccaa!L5 -> iEMPRESA | L5: ¿▲"sin" mi Empresa?
A6: Total | B6: Facturación, € | D6: (a) | E6: =J5 -> iEMPRESA | I6: Cuota de Facturación | J6: ∆ | L6: (b) | M6: ∆ (a-b)
B7: 2020 | C7: 2021 | D7: % i.a. | E7: =B7 -> 2020 | F7: =C7 -> 2021 | G7: % i.a. | H7: =E7 -> 2020 | I7: =F7 -> 2021 | J7: Dif.P.P. | L7: % i.a. | M7: Dif.P.P.
A8: Nacional | B8: 3478302304 | C8: 4017654944 | D8: =((C8/B8)-1) -> 0.1550620368 | E8: =empresa_ccaa!K12 -> 0 | F8: =empresa_ccaa!L12 -> 0 | G8: =IF(E8>0,((F8/E8)-1),"n.a.") -> n.a. | H8: =E8/B8 -> 0 | I8: =F8/C8 -> 0 | J8: =(I8-H8)*100 -> 0 | L8: =((C8-F8)/(B8-E8))-1 -> 0.1550620368 | M8: =(D8-L8)*100 -> 0
A9: ANDALUCIA | B9: 325106938.2 | C9: 390938400.1 | D9: =((C9/B9)-1) -> 0.2024917163 | E9: =empresa_ccaa!K13 -> 0 | F9: =empresa_ccaa!L13 -> 0 | G9: n.a. | H9: =E9/B9 -> 0 | I9: =F9/C9 -> 0 | J9: =(I9-H9)*100 -> 0 | L9: =((C9-F9)/(B9-E9))-1 -> 0.2024917163 | M9: 0
A10: ARAGON | B10: 161979446.1 | C10: 200552427.8 | D10: =((C10/B10)-1) -> 0.2381350385 | E10: =empresa_ccaa!K14 -> 0 | F10: =empresa_ccaa!L14 -> 0 | G10: n.a. | H10: 0 | I10: 0 | J10: 0 | L10: 0.2381350385 | M10: 0
A11: ASTURIAS | B11: 64217268.76 | C11: 76599718.79 | D11: 0.1928211877 | E11: =empresa_ccaa!K15 -> 0 | F11: =empresa_ccaa!L15 -> 0 | G11: n.a. | H11: 0 | I11: 0 | J11: 0 | L11: 0.1928211877 | M11: 0
A12: BALEARES | B12: 7056366.232 | C12: 13820177.22 | D12: 0.9585402404 | E12: =empresa_ccaa!K16 -> 0 | F12: =empresa_ccaa!L16 -> 0 | G12: =IF(E12>0,((F12/E12)-1),"n.a.") -> n.a. | H12: 0 | I12: 0 | J12: 0 | L12: 0.9585402404 | M12: 0
A13: CANARIAS | B13: 49270203.34 | C13: 58268791.17 | D13: 0.1826375216 | E13: =empresa_ccaa!K17 -> 0 | F13: =empresa_ccaa!L17 -> 0 | G13: n.a. | H13: 0 | I13: 0 | J13: 0 | L13: 0.1826375216 | M13: 0
A14: CANTABRIA | B14: 90514018.61 | C14: 105840256.2 | D14: 0.1693244625 | E14: =empresa_ccaa!K18 -> 0 | F14: =empresa_ccaa!L18 -> 0 | G14: n.a. | H14: 0 | I14: 0 | J14: 0 | L14: 0.1693244625 | M14: 0
A15: CASTILLA-LA MANCHA | B15: 215090960.5 | C15: 259282942.2 | D15: 0.205457178 | E15: =empresa_ccaa!K19 -> 0 | F15: =empresa_ccaa!L19 -> 0 | G15: n.a. | H15: 0 | I15: 0 | J15: 0 | L15: 0.205457178 | M15: 0
A16: CASTILLA Y LEÓN | B16: 216430428.5 | C16: 216591115.9 | D16: 0.0007424435555 | E16: =empresa_ccaa!K20 -> 0 | F16: =empresa_ccaa!L20 -> 0 | G16: n.a. | H16: 0 | I16: 0 | J16: =(I16-H16)*100 -> 0 | L16: 0.0007424435555 | M16: 0
A17: CATALUÑA | B17: 794040809 | C17: 927964064.3 | D17: 0.1686604187 | E17: =empresa_ccaa!K21 -> 0 | F17: =empresa_ccaa!L21 -> 0 | G17: =IF(E17>0,((F17/E17)-1),"n.a.") -> n.a. | H17: 0 | I17: 0 | J17: =(I17-H17)*100 -> 0 | L17: 0.1686604187 | M17: 0
A18: COMUNIDAD VALENCIANA | B18: 273819114.9 | C18: 357372309.7 | D18: 0.3051401098 | E18: =empresa_ccaa!K22 -> 0 | F18: =empresa_ccaa!L22 -> 0 | G18: n.a. | H18: 0 | I18: 0 | J18: =(I18-H18)*100 -> 0 | L18: 0.3051401098 | M18: 0
A19: EXTREMADURA | B19: 37789031.68 | C19: 50457633.84 | D19: 0.3352454827 | E19: =empresa_ccaa!K23 -> 0 | F19: =empresa_ccaa!L23 -> 0 | G19: n.a. | H19: 0 | I19: 0 | J19: 0 | L19: 0.3352454827 | M19: 0
A20: GALICIA | B20: 159713274.5 | C20: 150202310.7 | D20: -0.05955023991 | E20: =empresa_ccaa!K24 -> 0 | F20: =empresa_ccaa!L24 -> 0 | G20: n.a. | H20: 0 | I20: 0 | J20: 0 | L20: -0.05955023991 | M20: 0
A21: MADRID | B21: 576769774.2 | C21: 642279291.5 | D21: 0.113580011 | E21: =empresa_ccaa!K25 -> 0 | F21: =empresa_ccaa!L25 -> 0 | G21: n.a. | H21: 0 | I21: 0 | J21: 0 | L21: 0.113580011 | M21: 0
A22: MURCIA | B22: 246870531.6 | C22: 265708327.8 | D22: 0.07630637847 | E22: =empresa_ccaa!K26 -> 0 | F22: =empresa_ccaa!L26 -> 0 | G22: n.a. | H22: 0 | I22: 0 | J22: 0 | L22: 0.07630637847 | M22: 0
A23: NAVARRA | B23: 94202142.08 | C23: 104052077.1 | D23: 0.1045616884 | E23: =empresa_ccaa!K27 -> 0 | F23: =empresa_ccaa!L27 -> 0 | G23: n.a. | H23: 0 | I23: 0 | J23: 0 | L23: 0.1045616884 | M23: 0
A24: PAIS VASCO | B24: 135762825 | C24: 167429939.5 | D24: 0.2332532079 | E24: =empresa_ccaa!K28 -> 0 | F24: =empresa_ccaa!L28 -> 0 | G24: n.a. | H24: 0 | I24: 0 | J24: 0 | L24: 0.2332532079 | M24: 0
A25: RIOJA (LA) | B25: 29669170.54 | C25: 30295159.92 | D25: 0.0210989849 | E25: =empresa_ccaa!K29 -> 0 | F25: =empresa_ccaa!L29 -> 0 | G25: n.a. | H25: 0 | I25: 0 | J25: 0 | L25: 0.0210989849 | M25: 0
J28: =I6 -> Cuota de Facturación
M29: =I7 -> 2021
B30: % i.a. | F30: % i.a.
B31: =C7 -> 2021 | F31: =B31 -> 2021
B32: Total | F32: Empresa | J32: =J5 -> iEMPRESA
M33: Ámbito
A34: Ámbito | B34: =F34 -> Nacional | F34: =J34 -> Nacional | J34: Nacional | M34: Nacional
J38: =GG221 -> ANDALUCIA | M38: CCAA
M39: Líder para la
B40: % i.a. | F40: % i.a. | M40: Empresa
B41: =B31 -> 2021 | F41: =B41 -> 2021
B42: Total | F42: Empresa | J42: =J32 -> iEMPRESA
A44: Ámbito | B44: =F44 -> ANDALUCIA | F44: =J44 -> ANDALUCIA | J44: =J38 -> ANDALUCIA
A48: Fuente: Cifras consolidadas del sector. Valores absolutos 2015-2021 y cifras de evolución de 2016 a la fecha. ASEMPLEO ©.
A49: Nota de Confidencialidad: Este informe comparativo contiene datos redondeados que son ficticeos y serán reemplazados por los que la Empresa introduzca en "empresa_ccaa".
GD197: Empresa - Sector | GE197: Empresa - Sector
GE198: p.p.
GE199: Puntos porcentuales
GD200: Dif. Ritmo | GE200: Importancia Relativa | GH200: Empresa
GD201: =IF(G8="n.a.","n.a.",(G8-D8)*100) -> n.a. | GE201: =empresa_ccaa!M12-empresa_ccaa!H12 ->  | GG201: criterio_rank | GH201: peso | GI201: Comunidad | GJ201: % i.a. | GK201: Total_Regional
GD202: =IF(G9="n.a.","n.a.",(G9-D9)*100) -> n.a. | GE202: =empresa_ccaa!M13-empresa_ccaa!H13 ->  | GG202: =IF(GH202=$GH$220,1,0) -> 1 | GH202: =I9 -> 0 | GI202: =A9 -> ANDALUCIA | GJ202: =G9 -> n.a. | GK202: =D9 -> 0.2024917163
GD203: =IF(G10="n.a.","n.a.",(G10-D10)*100) -> n.a. | GE203: =empresa_ccaa!M14-empresa_ccaa!H14 ->  | GG203: =IF(GH203=$GH$220,1,0) -> 1 | GH203: =I10 -> 0 | GI203: =A10 -> ARAGON | GJ203: =G10 -> n.a. | GK203: =D10 -> 0.2381350385
GD204: =IF(G11="n.a.","n.a.",(G11-D11)*100) -> n.a. | GE204: =empresa_ccaa!M15-empresa_ccaa!H15 ->  | GG204: =IF(GH204=$GH$220,1,0) -> 1 | GH204: =I11 -> 0 | GI204: =A11 -> ASTURIAS | GJ204: =G11 -> n.a. | GK204: =D11 -> 0.1928211877
GD205: =IF(G12="n.a.","n.a.",(G12-D12)*100) -> n.a. | GE205: =empresa_ccaa!M16-empresa_ccaa!H16 ->  | GG205: =IF(GH205=$GH$220,1,0) -> 1 | GH205: =I12 -> 0 | GI205: =A12 -> BALEARES | GJ205: =G12 -> n.a. | GK205: =D12 -> 0.9585402404
GD206: =IF(G13="n.a.","n.a.",(G13-D13)*100) -> n.a. | GE206: =empresa_ccaa!M17-empresa_ccaa!H17 ->  | GG206: =IF(GH206=$GH$220,1,0) -> 1 | GH206: =I13 -> 0 | GI206: =A13 -> CANARIAS | GJ206: =G13 -> n.a. | GK206: =D13 -> 0.1826375216
GD207: =IF(G14="n.a.","n.a.",(G14-D14)*100) -> n.a. | GE207: =empresa_ccaa!M18-empresa_ccaa!H18 ->  | GG207: =IF(GH207=$GH$220,1,0) -> 1 | GH207: =I14 -> 0 | GI207: =A14 -> CANTABRIA | GJ207: =G14 -> n.a. | GK207: =D14 -> 0.1693244625
GD208: =IF(G15="n.a.","n.a.",(G15-D15)*100) -> n.a. | GE208: =empresa_ccaa!M19-empresa_ccaa!H19 ->  | GG208: =IF(GH208=$GH$220,1,0) -> 1 | GH208: =I15 -> 0 | GI208: =A15 -> CASTILLA-LA MANCHA | GJ208: =G15 -> n.a. | GK208: =D15 -> 0.205457178
GD209: =IF(G16="n.a.","n.a.",(G16-D16)*100) -> n.a. | GE209: =empresa_ccaa!M20-empresa_ccaa!H20 ->  | GG209: =IF(GH209=$GH$220,1,0) -> 1 | GH209: =I16 -> 0 | GI209: =A16 -> CASTILLA Y LEÓN | GJ209: =G16 -> n.a. | GK209: =D16 -> 0.0007424435555
GD210: =IF(G17="n.a.","n.a.",(G17-D17)*100) -> n.a. | GE210: =empresa_ccaa!M21-empresa_ccaa!H21 ->  | GG210: =IF(GH210=$GH$220,1,0) -> 1 | GH210: =I17 -> 0 | GI210: =A17 -> CATALUÑA | GJ210: =G17 -> n.a. | GK210: =D17 -> 0.1686604187
GD211: =IF(G18="n.a.","n.a.",(G18-D18)*100) -> n.a. | GE211: =empresa_ccaa!M22-empresa_ccaa!H22 ->  | GG211: =IF(GH211=$GH$220,1,0) -> 1 | GH211: =I18 -> 0 | GI211: =A18 -> COMUNIDAD VALENCIANA | GJ211: =G18 -> n.a. | GK211: =D18 -> 0.3051401098
GD212: =IF(G19="n.a.","n.a.",(G19-D19)*100) -> n.a. | GE212: =empresa_ccaa!M23-empresa_ccaa!H23 ->  | GG212: =IF(GH212=$GH$220,1,0) -> 1 | GH212: =I19 -> 0 | GI212: =A19 -> EXTREMADURA | GJ212: =G19 -> n.a. | GK212: =D19 -> 0.3352454827
GD213: =IF(G20="n.a.","n.a.",(G20-D20)*100) -> n.a. | GE213: =empresa_ccaa!M24-empresa_ccaa!H24 ->  | GG213: =IF(GH213=$GH$220,1,0) -> 1 | GH213: =I20 -> 0 | GI213: =A20 -> GALICIA | GJ213: =G20 -> n.a. | GK213: =D20 -> -0.05955023991
GD214: =IF(G21="n.a.","n.a.",(G21-D21)*100) -> n.a. | GE214: =empresa_ccaa!M25-empresa_ccaa!H25 ->  | GG214: =IF(GH214=$GH$220,1,0) -> 1 | GH214: =I21 -> 0 | GI214: =A21 -> MADRID | GJ214: =G21 -> n.a. | GK214: =D21 -> 0.113580011
GD215: =IF(G22="n.a.","n.a.",(G22-D22)*100) -> n.a. | GE215: =empresa_ccaa!M26-empresa_ccaa!H26 ->  | GG215: =IF(GH215=$GH$220,1,0) -> 1 | GH215: =I22 -> 0 | GI215: =A22 -> MURCIA | GJ215: =G22 -> n.a. | GK215: =D22 -> 0.07630637847
GD216: =IF(G23="n.a.","n.a.",(G23-D23)*100) -> n.a. | GE216: =empresa_ccaa!M27-empresa_ccaa!H27 ->  | GG216: =IF(GH216=$GH$220,1,0) -> 1 | GH216: =I23 -> 0 | GI216: =A23 -> NAVARRA | GJ216: =G23 -> n.a. | GK216: =D23 -> 0.1045616884
GD217: =IF(G24="n.a.","n.a.",(G24-D24)*100) -> n.a. | GE217: =empresa_ccaa!M28-empresa_ccaa!H28 ->  | GG217: =IF(GH217=$GH$220,1,0) -> 1 | GH217: =I24 -> 0 | GI217: =A24 -> PAIS VASCO | GJ217: =G24 -> n.a. | GK217: =D24 -> 0.2332532079
GD218: =IF(G25="n.a.","n.a.",(G25-D25)*100) -> n.a. | GE218: =empresa_ccaa!M29-empresa_ccaa!H29 ->  | GG218: =IF(GH218=$GH$220,1,0) -> 1 | GH218: =I25 -> 0 | GI218: =A25 -> RIOJA (LA) | GJ218: =G25 -> n.a. | GK218: =D25 -> 0.0210989849
GG219: codifico=1 | GH219: máximo
GG220: =DMAX(GG201:GI218,GH201,GG201:GG218)*1 -> 0 | GH220: =MAX(GH202:GH218) -> 0
GF221: geo data | GG221: =VLOOKUP(1,GG201:GK218,3,0) -> ANDALUCIA
GG222: el dato a buscar debe estar en la primera columna.
GG223: =VLOOKUP(1,GG201:GK218,4,0)*1 -> 
GG224: =VLOOKUP(1,GG201:GK218,5,0)*1 -> 0.2024917163

Sheet Ayuda y Version (hidden)
G2: Versión de plantilla: | H2: 2.5

Sheet pBlock (hidden)
B4: Block Test
B5: Info1 | C5: Info2

Sheet pAccel0 (hidden)
A1: Gauge Configuration | O1: Gauge Configuration | Z1: Gauge Configuration | AK1: Gauge Configuration
F2: Decal | T2: Decal | AE2: Decal | AP2: Decal
A3: Title: | B3: =Dashboard!#REF! ->  | F3: 0 | O3: Title: | P3: =pAccel0!B3 ->  | T3: 0 | Z3: Title: | AA3: Empresa | AE3: 0 | AK3: Title: | AL3: CCAA | AP3: 0
A4: Real Value: | B4: =Dashboard!#REF! ->  | O4: Real Value: | P4: =Dashboard!I8 -> 0 | Z4: Real Value: | AA4: =Dashboard!I8 -> 0 | AK4: Real Value: | AL4: =Dashboard!GG220 -> 0
A6: Color bands | O6: Color bands | Z6: Color bands | AK6: Color bands
A7: Red: | B7: 2 | O7: Red: | P7: 2 | Z7: Red: | AA7: 2 | AK7: Red: | AL7: 2
A8: Yellow: | B8: 15 | O8: Yellow: | P8: 15 | Z8: Yellow: | AA8: 15 | AK8: Yellow: | AL8: 15
A9: Green: | B9: 23 | O9: Green: | P9: 23 | Z9: Green: | AA9: 23 | AK9: Green: | AL9: 23
A11: Advanced Parameters | O11: Advanced Parameters | Z11: Advanced Parameters | AK11: Advanced Parameters
B12: Value to 100% | C12: =IF(ISERROR((B4-F3/100)*B27),0,(B4-F3/100)*B27) -> 0 | P12: Value to 100% | Q12: =IF(ISERROR((P4-T3/100)*P27),0,(P4-T3/100)*P27) -> 0 | AA12: Value to 100% | AB12: =IF(ISERROR((AA4-AE3/100)*AA27),0,(AA4-AE3/100)*AA27) -> 0 | AL12: Value to 100% | AM12: =IF(ISERROR((AL4-AP3/100)*AL27),0,(AL4-AP3/100)*AL27) -> 0
B13: Relative value | C13: =IF(C12>100%,102%,IF(C12<0%,-2%,C12))*1.506-0.253 -> -0.253 | P13: Relative value | Q13: =IF(Q12>100%,102%,IF(Q12<0%,-2%,Q12))*1.506-0.253 -> -0.253 | AA13: Relative value | AB13: =IF(AB12>100%,102%,IF(AB12<0%,-2%,AB12))*1.506-0.253 -> -0.253 | AL13: Relative value | AM13: =IF(AM12>100%,102%,IF(AM12<0%,-2%,AM12))*1.506-0.253 -> -0.253
A15: Angle | C15: =C13*PI() -> -0.7948229414 | O15: Angle | Q15: =Q13*PI() -> -0.7948229414 | Z15: Angle | AB15: =AB13*PI() -> -0.7948229414 | AK15: Angle | AM15: =AM13*PI() -> -0.7948229414
A16: x | B16: 0 | C16: =-COS(C15) -> -0.7004111508 | O16: x | P16: 0 | Q16: =-COS(Q15) -> -0.7004111508 | Z16: x | AA16: 0 | AB16: =-COS(AB15) -> -0.7004111508 | AK16: x | AL16: 0 | AM16: =-COS(AM15) -> -0.7004111508
A17: y | B17: 0 | C17: =SIN(C15) -> -0.7137396023 | O17: y | P17: 0 | Q17: =SIN(Q15) -> -0.7137396023 | Z17: y | AA17: 0 | AB17: =SIN(AB15) -> -0.7137396023 | AK17: y | AL17: 0 | AM17: =SIN(AM15) -> -0.7137396023
D19: Value | E19: Label | R19: Value | S19: Label | AC19: Value | AD19: Label | AN19: Value | AO19: Label
C20: 70 | D20: 10 | E20: =B26+F3 -> 4 | Q20: 70 | R20: 10 | S20: =P26+T3 -> 4 | AB20: 70 | AC20: 10 | AD20: =AA26+AE3 -> 4 | AM20: 70 | AN20: 10 | AO20: =AL26+AP3 -> 4
C21: =B7*$C$20/$B$25 -> 3.5 | D21: 10 | E21: =E20+$B$26 -> 8 | Q21: =P7*$C$20/$B$25 -> 3.5 | R21: 10 | S21: =S20+$B$26 -> 8 | AB21: =AA7*$AB$20/$AA$25 -> 3.5 | AC21: 10 | AD21: =AD20+$AA$26 -> 8 | AM21: =AL7*$AM$20/$AL$25 -> 3.5 | AN21: 10 | AO21: =AO20+$AL$26 -> 8
C22: =B8*$C$20/$B$25 -> 26.25 | D22: 10 | E22: 12 | Q22: =P8*$C$20/$B$25 -> 26.25 | R22: 10 | S22: 12 | AB22: =AA8*$AB$20/$AA$25 -> 26.25 | AC22: 10 | AD22: 12 | AM22: =AL8*$AM$20/$AL$25 -> 26.25 | AN22: 10 | AO22: =AO21+$AL$26 -> 12
C23: =B9*$C$20/$B$25 -> 40.25 | D23: 10 | E23: 16 | Q23: =P9*$C$20/$B$25 -> 40.25 | R23: 10 | S23: 16 | AB23: =AA9*$AB$20/$AA$25 -> 40.25 | AC23: 10 | AD23: 16 | AM23: 40.25 | AN23: 10 | AO23: 16
A24: White | C24: 23 | D24: 10 | E24: 20 | O24: White | Q24: 23 | R24: 10 | S24: 20 | Z24: White | AB24: 23 | AC24: 10 | AD24: 20 | AK24: White | AM24: 23 | AN24: 10 | AO24: 20
A25: Total | B25: =SUM(B7:B24) -> 40 | C25: =SUM(C21:C24) -> 93 | D25: 10 | E25: 24 | O25: Total | P25: =SUM(P7:P24) -> 40 | Q25: =SUM(Q21:Q24) -> 93 | R25: 10 | S25: 24 | Z25: Total | AA25: =SUM(AA7:AA24) -> 40 | AB25: =SUM(AB21:AB24) -> 93 | AC25: 10 | AD25: 24 | AK25: Total | AL25: =SUM(AL7:AL24) -> 40 | AM25: =SUM(AM21:AM24) -> 93 | AN25: 10 | AO25: 24
A26: Increment | B26: =B25/10 -> 4 | D26: 10 | E26: 28 | O26: Increment | P26: =P25/10 -> 4 | R26: 10 | S26: 28 | Z26: Increment | AA26: =AA25/10 -> 4 | AC26: 10 | AD26: 28 | AK26: Increment | AL26: =AL25/10 -> 4 | AN26: 10 | AO26: 28
A27: Conversion | B27: =100/B25 -> 2.5 | D27: 10 | E27: 32 | O27: Conversion | P27: =100/P25 -> 2.5 | R27: 10 | S27: 32 | Z27: Conversion | AA27: =100/AA25 -> 2.5 | AC27: 10 | AD27: 32 | AK27: Conversion | AL27: =100/AL25 -> 2.5 | AN27: 10 | AO27: 32
D28: 10 | E28: 36 | R28: 10 | S28: 36 | AC28: 10 | AD28: 36 | AN28: 10 | AO28: 36
D29: 10 | E29: 40 | R29: 10 | S29: 40 | AC29: 10 | AD29: 40 | AN29: 10 | AO29: 40
D30: 33 | E30: =F3 -> 0 | R30: 33 | S30: =T3 -> 0 | AC30: 33 | AD30: =AE3 -> 0 | AN30: 33 | AO30: =AP3 -> 0

Sheet pAccel1 (hidden)
A1: Gauge Configuration | Q1: Gauge Configuration | X1: Gauge Configuration | AE1: Gauge Configuration | AL1: Gauge Configuration | AS1: Gauge Configuration | AZ1: Gauge Configuration | BG1: Gauge Configuration
F2: Decal | V2: Decal | AC2: Decal | AJ2: Decal | AQ2: Decal | AX2: Decal | BE2: Decal | BL2: Decal
A3: Title: | B3: CPDs | F3: 100 | Q3: Title: | R3: Facturación | V3: 100 | X3: Title: | Y3: CPDs | AC3: 100 | AE3: Title: | AF3: Facturación | AJ3: 100 | AL3: Title: | AM3: Facturación | AQ3: 100 | AS3: Title: | AT3: Facturación | AX3: 100 | AZ3: Title: | BA3: Facturación | BE3: 100 | BG3: Title: | BH3: Facturación | BL3: 100
A4: Real Value: | B4: =Dashboard!#REF! ->  | C4: =Dashboard!#REF! ->  | Q4: Real Value: | R4: =Dashboard!#REF! ->  | X4: Real Value: | Y4: =Dashboard!#REF! ->  | AE4: Real Value: | AF4: =Dashboard!#REF! ->  | AL4: Real Value: | AM4: =Dashboard!D8 -> 0.1550620368 | AS4: Real Value: | AT4: =Dashboard!$G$8 -> n.a. | AZ4: Real Value: | BA4: =Dashboard!GG224 -> 0.2024917163 | BG4: Real Value: | BH4: =Dashboard!GG223 -> 
A6: Color bands
A7: Red: | B7: -50
A8: Yellow: | B8: 0
A9: Green: | B9: 50
A11: Advanced Parameters | Q11: Advanced Parameters | X11: Advanced Parameters | AE11: Advanced Parameters | AL11: Advanced Parameters | AS11: Advanced Parameters | AZ11: Advanced Parameters | BG11: Advanced Parameters
B12: Value to 100% | C12: =IF(ISERROR((B4-F3/100)*B27),0,(B4-F3/100)*B27) -> 0 | E12: =IF(ISERROR((C4-F3/100)*B27),0,(C4-F3/100)*B27) -> 0 | R12: Value to 100% | S12: =IF(ISERROR((R4-V3/100)*R27),0,(R4-V3/100)*R27) -> 0 | Y12: Value to 100% | Z12: =IF(ISERROR((Y4-AC3/100)*Y27),0,(Y4-AC3/100)*Y27) -> 0 | AF12: Value to 100% | AG12: =IF(ISERROR((AF4-AJ3/100)*AF27),0,(AF4-AJ3/100)*AF27) -> 0 | AM12: Value to 100% | AN12: =IF(ISERROR((AM4-AQ3/100)*AM27),0,(AM4-AQ3/100)*AM27) -> -1.689875926 | AT12: Value to 100% | AU12: =IF(ISERROR((AT4-AX3/100)*AT27),0,(AT4-AX3/100)*AT27) -> 0 | BA12: Value to 100% | BB12: =IF(ISERROR((BA4-BE3/100)*BA27),0,(BA4-BE3/100)*BA27) -> -1.595016567 | BH12: Value to 100% | BI12: =IF(ISERROR((BH4-BL3/100)*BH27),0,(BH4-BL3/100)*BH27) -> 0
B13: Relative value | C13: =IF(B4<-100%,-100%,IF(B4>100%,100%,2*B4/1)) ->  | D13: ojo1, todo en porcentaje, por 2, y con 1 al final en lugar de 100. | E13: =IF(C4<-100%,-100%,IF(C4>100%,100%,2*C4/1)) ->  | I13: Todos los negritas tienen dato 50, en lugar de 100 para que la escala recorra menos. | R13: Relative value | S13: =IF(R4<-100%,-100%,IF(R4>100%,100%,2*R4/1)) ->  | Y13: Relative value | Z13: =IF(Y4<-100%,-100%,IF(Y4>100%,100%,2*Y4/1)) ->  | AF13: Relative value | AG13: =IF(AF4<-100%,-100%,IF(AF4>100%,100%,2*AF4/1)) ->  | AM13: Relative value | AN13: =IF(AM4<-100%,-100%,IF(AM4>100%,100%,2*AM4/1)) -> 0.3101240736 | AT13: Relative value | AU13: =IF(AT4<-100%,-100%,IF(AT4>100%,100%,2*AT4/1)) -> 1 | BA13: Relative value | BB13: =IF(BA4<-100%,-100%,IF(BA4>100%,100%,2*BA4/1)) -> 0.4049834326 | BH13: Relative value | BI13: =IF(BH4<-100%,-100%,IF(BH4>100%,100%,2*BH4/1)) -> 
A15: Angle | C15: =C13*PI()/2 ->  | E15: =E13*PI()/2 ->  | Q15: Angle | S15: =S13*PI()/2 ->  | X15: Angle | Z15: =Z13*PI()/2 ->  | AE15: Angle | AG15: =AG13*PI()/2 ->  | AL15: Angle | AN15: =AN13*PI()/2 -> 0.4871417557 | AS15: Angle | AU15: =AU13*PI()/2 -> 1.570796327 | AZ15: Angle | BB15: =BB13*PI()/2 -> 0.6361464883 | BG15: Angle | BI15: =BI13*PI()/2 -> 
A16: x | B16: 0 | C16: =SIN(C15) ->  | D16: =B16 -> 0 | E16: =SIN(E15) ->  | Q16: x | R16: 0 | S16: =SIN(S15) ->  | X16: x | Y16: 0 | Z16: =SIN(Z15) ->  | AE16: x | AF16: 0 | AG16: =SIN(AG15) ->  | AL16: x | AM16: 0 | AN16: =SIN(AN15) -> 0.4681020464 | AS16: x | AT16: 0 | AU16: =SIN(AU15) -> 1 | AZ16: x | BA16: 0 | BB16: =SIN(BB15) -> 0.5941001296 | BG16: x | BH16: 0 | BI16: =SIN(BI15) -> 
A17: y | B17: 0 | C17: =-COS(C15) ->  | D17: =B17 -> 0 | E17: =-COS(E15) ->  | Q17: y | R17: 0 | S17: =-COS(S15) ->  | X17: y | Y17: 0 | Z17: =-COS(Z15) ->  | AE17: y | AF17: 0 | AG17: =-COS(AG15) ->  | AL17: y | AM17: 0 | AN17: =-COS(AN15) -> -0.8836744164 | AS17: y | AT17: 0 | AU17: =-COS(AU15) -> -6.125742275e-17 | AZ17: y | BA17: 0 | BB17: =-COS(BB15) -> -0.8043910965 | BG17: y | BH17: 0 | BI17: =-COS(BI15) -> 
D19: Value | E19: Label
C20: 50 | D20: 0 | E20: 50
C21: =E21 -> 40 | D21: =D31/D33 -> 5 | E21: =E20+$B$26 -> 40
C22: =E22 -> 30 | D22: =D21 -> 5 | E22: =E21+$B$26 -> 30
C23: 20 | D23: =D22 -> 5 | E23: 20
A24: White | C24: 10 | D24: 5 | E24: 10 | Q24: White | X24: White | AE24: White | AL24: White | AS24: White | AZ24: White | BG24: White
A25: Total | B25: 50 | C25: 0 | D25: 5 | E25: 0 | Q25: Total | R25: 50 | X25: Total | Y25: 50 | AE25: Total | AF25: 50 | AL25: Total | AM25: 50 | AS25: Total | AT25: 50 | AZ25: Total | BA25: 50 | BG25: Total | BH25: 50
A26: Increment | B26: -10 | C26: -10 | D26: 5 | E26: -10 | Q26: Increment | R26: -10 | X26: Increment | Y26: -10 | AE26: Increment | AF26: -10 | AL26: Increment | AM26: -10 | AS26: Increment | AT26: -10 | AZ26: Increment | BA26: -10 | BG26: Increment | BH26: -10
A27: Conversion | B27: =100/B25 -> 2 | C27: -20 | D27: 5 | E27: -20 | Q27: Conversion | R27: =100/R25 -> 2 | X27: Conversion | Y27: =100/Y25 -> 2 | AE27: Conversion | AF27: =100/AF25 -> 2 | AL27: Conversion | AM27: =100/AM25 -> 2 | AS27: Conversion | AT27: =100/AT25 -> 2 | AZ27: Conversion | BA27: =100/BA25 -> 2 | BG27: Conversion | BH27: =100/BH25 -> 2
C28: -30 | D28: 5 | E28: -30
C29: -40 | D29: 5 | E29: -40
C30: -50 | D30: 5 | E30: -50
D31: 50
D33: 10
D35: =SUM(D20:D30) -> 50

Sheet empresa_ccaa
M3: =Dashboard!M3 -> 2021
M4: =Dashboard!M4 -> DICIEMBRE
K5: Empresa | L5: =L9 -> iEMPRESA
C9: Facturación, € | F9: ASEMPLEO | G9: ASEMPLEO | K9: Empresa = | L9: iEMPRESA
C10: Dato acumulado a | E10: =M4 -> DICIEMBRE | F10: =Dashboard!B7 -> 2020 | G10: =Dashboard!C7 -> 2021 | J10: Facturación | K10: =F10 -> 2020 | L10: =G10 -> 2021
H11: Estructura (%) | J11: Datos acumulados | M11: Estructura (%) | HR11: check
F12: 3478302304 | G12: 4017654944 | H12: =G12/G$12 -> 1 | I12: TOTAL | K12: =SUM(K13:K29) -> 0 | L12: =SUM(L13:L29) -> 0 | M12: =L12/L$12 ->  | HR12: =L12/K12-1 -> 
F13: 325106938.2 | G13: 390938400.1 | H13: =G13/G$12 -> 0.09730512091 | I13: ANDALUCIA | M13: =L13/L$12 ->  | HR13: =L13/K13-1 -> 
F14: 161979446.1 | G14: 200552427.8 | H14: =G14/G$12 -> 0.04991778303 | I14: ARAGON | M14: =L14/L$12 ->  | HR14: =L14/K14-1 -> 
F15: 64217268.76 | G15: 76599718.79 | H15: =G15/G$12 -> 0.01906577839 | I15: ASTURIAS | M15: =L15/L$12 ->  | HR15: =L15/K15-1 -> 
F16: 7056366.232 | G16: 13820177.22 | H16: 0.003439861663 | I16: BALEARES | HR16: =L16/K16-1 -> 
F17: 49270203.34 | G17: 58268791.17 | H17: 0.01450318457 | I17: CANARIAS | HR17: =L17/K17-1 -> 
F18: 90514018.61 | G18: 105840256.2 | H18: 0.02634378951 | I18: CANTABRIA | HR18: =L18/K18-1 -> 
F19: 215090960.5 | G19: 259282942.2 | H19: 0.06453589118 | I19: CASTILLA-LA MANCHA | HR19: =L19/K19-1 -> 
F20: 216430428.5 | G20: 216591115.9 | H20: 0.0539098352 | I20: CASTILLA Y LEÓN | HR20: =L20/K20-1 -> 
F21: 794040809 | G21: 927964064.3 | H21: 0.2309715686 | I21: CATALUÑA | M21: =L21/L$12 ->  | HR21: =L21/K21-1 -> 
F22: 273819114.9 | G22: 357372309.7 | H22: 0.08895047353 | I22: COMUNIDAD VALENCIANA | HR22: =L22/K22-1 -> 
F23: 37789031.68 | G23: 50457633.84 | H23: 0.01255897645 | I23: EXTREMADURA | HR23: =L23/K23-1 -> 
F24: 159713274.5 | G24: 150202310.7 | H24: 0.03738556765 | I24: GALICIA | HR24: =L24/K24-1 -> 
F25: 576769774.2 | G25: 642279291.5 | H25: 0.1598642244 | I25: MADRID | HR25: =L25/K25-1 -> 
F26: 246870531.6 | G26: 265708327.8 | H26: 0.06613517874 | I26: MURCIA | HR26: =L26/K26-1 -> 
F27: 94202142.08 | G27: 104052077.1 | H27: 0.02589870921 | I27: NAVARRA | HR27: =L27/K27-1 -> 
F28: 135762825 | G28: 167429939.5 | H28: 0.04167354882 | I28: PAIS VASCO | HR28: =L28/K28-1 -> 
F29: 29669170.54 | G29: 30295159.92 | H29: 0.007540508168 | I29: RIOJA (LA) | HR29: =L29/K29-1 -> 
A31: Fuente: Cifras consolidadas del sector. ASEMPLEO ©.
A32: Nota de Confidencialidad: Este informe comparativo se genera con los datos propios de la Empresa.
DP241: D03: | DS241: D03: | DV241: D03 : | DW241: Variación Interanual (%)
DP242: MES: | DQ242: ACUMULADO A LA FECHA | DS242: =DP242 -> MES: | DT242: =DQ242 -> ACUMULADO A LA FECHA | DV242: =DS242 -> MES: | DW242: Tasa % i.a.
DQ244: Facturación | DT244: Facturación | DW244: Facturación
DX245: check
DP246: TOTAL | DQ246: 4017654944 | DS246: TOTAL | DT246: 3478302304 | DV246: TOTAL | DW246: 0.1550620368 | DX246: =DQ246/DT246-1 -> 0.1550620368
DP247: ANDALUCIA | DQ247: 390938400.1 | DS247: ANDALUCIA | DT247: 325106938.2 | DV247: ANDALUCIA | DW247: 0.2024917163 | DX247: =DQ247/DT247-1 -> 0.2024917163
DP248: ARAGON | DQ248: 200552427.8 | DS248: ARAGON | DT248: 161979446.1 | DV248: ARAGON | DW248: 0.2381350385 | DX248: 0.2381350385
DP249: ASTURIAS | DQ249: 76599718.79 | DS249: ASTURIAS | DT249: 64217268.76 | DV249: ASTURIAS | DW249: 0.1928211877 | DX249: 0.1928211877
DP250: BALEARES | DQ250: 13820177.22 | DS250: BALEARES | DT250: 7056366.232 | DV250: BALEARES | DW250: 0.9585402404 | DX250: 0.9585402404
DP251: CANARIAS | DQ251: 58268791.17 | DS251: CANARIAS | DT251: 49270203.34 | DV251: CANARIAS | DW251: 0.1826375216 | DX251: 0.1826375216
DP252: CANTABRIA | DQ252: 105840256.2 | DS252: CANTABRIA | DT252: 90514018.61 | DV252: CANTABRIA | DW252: 0.1693244625 | DX252: 0.1693244625
DP253: CASTILLA-LA MANCHA | DQ253: 259282942.2 | DS253: CASTILLA-LA MANCHA | DT253: 215090960.5 | DV253: CASTILLA-LA MANCHA | DW253: 0.205457178 | DX253: 0.205457178
DP254: CASTILLA Y LEÓN | DQ254: 216591115.9 | DS254: CASTILLA Y LEÓN | DT254: 216430428.5 | DV254: CASTILLA Y LEÓN | DW254: 0.0007424435555 | DX254: 0.0007424435555
DP255: CATALUÑA | DQ255: 927964064.3 | DS255: CATALUÑA | DT255: 794040809 | DV255: CATALUÑA | DW255: 0.1686604187 | DX255: 0.1686604187
DP256: COMUNIDAD VALENCIANA | DQ256: 357372309.7 | DS256: COMUNIDAD VALENCIANA | DT256: 273819114.9 | DV256: COMUNIDAD VALENCIANA | DW256: 0.3051401098 | DX256: 0.3051401098
DP257: EXTREMADURA | DQ257: 50457633.84 | DS257: EXTREMADURA | DT257: 37789031.68 | DV257: EXTREMADURA | DW257: 0.3352454827 | DX257: 0.3352454827
DP258: GALICIA | DQ258: 150202310.7 | DS258: GALICIA | DT258: 159713274.5 | DV258: GALICIA | DW258: -0.05955023991 | DX258: -0.05955023991
DP259: MADRID | DQ259: 642279291.5 | DS259: MADRID | DT259: 576769774.2 | DV259: MADRID | DW259: 0.113580011 | DX259: 0.113580011
DP260: MURCIA | DQ260: 265708327.8 | DS260: MURCIA | DT260: 246870531.6 | DV260: MURCIA | DW260: 0.07630637847 | DX260: 0.07630637847
DP261: NAVARRA | DQ261: 104052077.1 | DS261: NAVARRA | DT261: 94202142.08 | DV261: NAVARRA | DW261: 0.1045616884 | DX261: 0.1045616884
DP262: PAIS VASCO | DQ262: 167429939.5 | DS262: PAIS VASCO | DT262: 135762825 | DV262: PAIS VASCO | DW262: 0.2332532079 | DX262: 0.2332532079
DP263: RIOJA (LA) | DQ263: 30295159.92 | DS263: RIOJA (LA) | DT263: 29669170.54 | DV263: RIOJA (LA) | DW263: 0.0210989849 | DX263: =DQ263/DT263-1 -> 0.0210989849
DP264: Ceuta y Melilla | DS264: Ceuta y Melilla | DV264: Ceuta y Melilla
